Workbook

Sheet 1. Начальные данные
U1: Версия: | V1: 4.0м
A12: Информация об исполнении полномочий по внутреннему муниципальному финансовому контролю
A17: Наименование МО: | D17: МР Нуримановский район РБ
A18: По состоянию на: | D18: 1 июля | F18: 2021 года
A20: Исполнитель: | D20: Гайнетдинова Олеся Николаевна
A22: Телефон: | D22: 8-34776-222102, сот. 8-961-370-72-72

Sheet 2. Пров.суммы
A1: Сведения о проверенных средствах
A2: =CONCATENATE("по состоянию на ",'1. Начальные данные'!D18," ",'1. Начальные данные'!F18) -> по состоянию на 1 июля 2021 года
A3: ='1. Начальные данные'!D17 -> МР Нуримановский район РБ
E4: в тыс.рублей
A5: Наименование бюджета | B5: Проверено в I полугодии 2021 года по средствам
B6: 2018 года | C6: 2019 года | D6: 2020 года | E6: 2021 года
A7: Средства бюджета Республики Башкортостан
A8: Средства бюджета муниципального образования | B8: 2980.2 | C8: 3038.5 | D8: 3120 | E8: 432.1
A9: Средства, полученные от приносящей доход деятельности
A10: Прочие средства
A11: Проверено всего | B11: =SUM(B7:B10) -> 2980.2 | C11: =SUM(C7:C10) -> 3038.5 | D11: =SUM(D7:D10) -> 3120 | E11: 432.1

Sheet 3. ФК-1
A1: Сведения о результатах проведенных контрольных мероприятий
A2: =CONCATENATE("по состоянию на ",'1. Начальные данные'!D18," ",'1. Начальные данные'!F18) -> по состоянию на 1 июля 2021 года
A3: ='1. Начальные данные'!D17 -> МР Нуримановский район РБ
A6: № п/п | D6: Наименование показателя | AE6: Код строки | AH6: Значение показателя
A7: I | D7: Проведено ревизий и проверок (единиц), в том числе: | AE7: 1 | AH7: =SUM(AH8:AL9) -> 2 | AM7: =IF(OR(AH7=SUM(AH10:AL11),AH7=0),"","Не сходится количество контрольных мероприятий (строка 1) с суммой плановых и внеплановых ревизий и проверок (строки 2,3)") -> 
D8: ревизий | AE8: 1/1 | AH8: 1
D9: проверок | AE9: 1/2 | AH9: 1
D10: плановые ревизии и проверки (из строки 1) | AE10: 2 | AH10: 1
D11: внеплановые ревизии и проверки (из строки 1) | AE11: 3 | AH11: 1
D12: количество проведенных выездных проверок и (или) ревизий, единиц | AE12: 4 | AH12: 1
D13: количество проведенных камеральных проверок, единиц | AE13: 5 | AH13: 1
D14: количество проведенных обследований, единиц | AE14: 6 | AH14: 0
D15: количество проведенных встречных проверок, единиц | AE15: 7 | AH15: 0
D16: Ревизии и проверки проведены в объектах контроля, (единиц): | AE16: 8
D17: Главные распорядители бюджетных средств | AE17: 9 | AH17: 1
D18: Государственные учреждения (автономные, бюджетные и казенные) и унитарные предприятия РБ | AE18: 10
D19: Администрации МО, финансовые органы МО | AE19: 11
D20: Муниципальные учреждения (автономные, бюджетные, казенные и унитарные) | AE20: 12 | AH20: 1
D21: Прочие юридические лица и ИП | AE21: 13
D22: Количество проведенных обмеров, осмотров и инвентаризаций ТМЦ, кассы (денежных средств и ценных бумаг и т.п.) | AE22: 14
A23: II | D23: Сведения о выявленных ревизиями и проверками финансовых нарушениях | AE23: Х | AH23: Х
D24: Количество ревизий и проверок, которыми выявлены нарушения – всего: (единиц) | AE24: 15
D25: в использовании средств бюджета Республики Башкортостан | AE25: 15/1
D26: в использовании средств бюджета муниципального образования | AE26: 15/2 | AH26: 2
D27: в использовании средств, полученных от приносящей доход деятельности | AE27: 15/3
D28: в использовании прочих средств | AE28: 15/4
D29: Сумма финансовых нарушений, в том числе: | AE29: 16 | AH29: =AH34+AH39+AH44+AH49+AH54+AH57+AH62+AH67 -> 587.7
D30: в использовании средств бюджета Республики Башкортостан | AE30: 16/1 | AH30: =AH35+AH40+AH45+AH50+AH58+AH63+AH68 -> 0
D31: в использовании средств бюджета муниципального образования | AE31: 16/2 | AH31: =AH36+AH41+AH46+AH51+AH55+AH56+AH59+AH64+AH69 -> 587.7
D32: в использовании средств, полученных от приносящей доход деятельности | AE32: 16/3 | AH32: =AH37+AH42+AH47+AH52++AH60+AH65+AH70 -> 0
D33: в использовании прочих средств | AE33: 16/4 | AH33: =AH38+AH43+AH48+AH53+AH61+AH66+AH71 -> 0
D34: Нецелевое использование средств, в том числе: | AE34: 17 | AH34: =SUM(AH35:AL38) -> 0
D35: средств бюджета Республики Башкортостан | AE35: 17/1
D36: в использовании средств бюджета муниципального образования | AE36: 17/2
D37: средств, полученных от приносящей доход деятельности | AE37: 17/3
D38: в использовании прочих средств | AE38: 17/4
D39: Неэффективное использование материальных ресурсов и денежных средств, в том числе: | AE39: 18 | AH39: =SUM(AH40:AL43) -> 167.1
D40: средств бюджета Республики Башкортостан | AE40: 18/1
D41: в использовании средств бюджета муниципального образования | AE41: 18/2 | AH41: 167.1
D42: средств, полученных от приносящей доход деятельности | AE42: 18/3
D43: в использовании прочих средств | AE43: 18/4
D44: Недостача денежных средств, в том числе: | AE44: 19 | AH44: =SUM(AH45:AL48) -> 0
D45: средств бюджета Республики Башкортостан | AE45: 19/1
D46: в использовании средств бюджета муниципального образования | AE46: 19/2
D47: средств, полученных от приносящей доход деятельности | AE47: 19/3
D48: прочих средств | AE48: 19/4
D49: Недостача материальных ресурсов: в том числе | AE49: 20 | AH49: =SUM(AH50:AL53) -> 0
D50: приобретенных за счет средств бюджета Республики Башкортостан | AE50: 20/1
D51: в использовании средств бюджета муниципального образования | AE51: 20/2
D52: средств, полученных от приносящей доход деятельности | AE52: 20/3
D53: приобретенных за счет прочих средств | AE53: 20/4
D54: Недопоступление платежей в бюджет, в том числе: | AE54: 21 | AH54: =SUM(AH55:AL56) -> 0
D55: Налоговые платежи: | AE55: 21/1
D56: Неналоговые платежи: | AE56: 21/2
D57: Излишки материальных ценностей и денежных средств (из строки 16), в том числе: | AE57: 22 | AH57: =SUM(AH58:AL61) -> 38
D58: средств бюджета Республики Башкортостан | AE58: 22/1
D59: в использовании средств бюджета муниципального образования | AE59: 22/2 | AH59: 38
D60: средств, полученных от приносящей доход деятельности | AE60: 22/3
D61: прочих средств | AE61: 22/4
D62: Неправомерное расходование денежных средств и материальных ресурсов (из строки 16), в том числе: | AE62: 23 | AH62: =SUM(AH63:AL66) -> 0
D63: средств бюджета Республики Башкортостан | AE63: 23/1
D64: в использовании средств бюджета муниципального образования | AE64: 23/2
D65: в использовании средств, полученных от приносящей доход деятельности | AE65: 23/3
D66: прочих средств | AE66: 23/4
D67: Другие финансовые нарушения (из строки 16), в том числе: | AE67: 24 | AH67: =SUM(AH68:AL71) -> 382.6
D68: средств бюджета Республики Башкортостан | AE68: 24/1
D69: в использовании средств бюджета муниципального образования | AE69: 24/2 | AH69: 382.6
D70: средств, полученных от приносящей доход деятельности | AE70: 24/3
D71: прочих средств | AE71: 24/4
A72: III | D72: Сведения о мерах, принятых по реализации материалов контрольных мероприятий (представления, предписания, уведомления о применении бюджетных мер принуждения) | AE72: Х | AH72: Х
D73: Направлено представлений, предписаний (единиц) | AE73: 25 | AH73: 2
D74: на сумму | AE74: 25/1 | AH74: 588
D75: Рассмотрено представлений, прдеписаний (единиц) | AE75: 26
D76: на сумму | AE76: 26/1 | AH76: 588
D77: Направлены уведомления о применении бюджетных мер принуждения, (единиц) | AE77: 27
D78: на сумму | AE78: 27/1 | AH78: 0
D79: Исполнены уведомления о применении бюджетных мер принуждения, (единиц) | AE79: 28 | AH79: 0
D80: на сумму | AE80: 28/1
D81: Возмещено средств, использованных с нарушениями, по предписаниям и представлениям Министерства в досудебном порядке, а также в добровольном порядке, (единиц) | AE81: 29
D82: на сумму | AE82: 29/1 | AH82: 0
D83: Передано органам прокуратуры и правоохранительным органам материалов ревизий (проверок), (единиц) | AE83: 30 | AH83: 0
D84: на сумму | AE84: 30/1
D85: Принято постановлений, решений или приказов объектами контроля, (единиц) | AE85: 31 | AH85: 2
D86: Число лиц, привлеченных к дисциплинарной ответственности – всего (чел.), в том числе: | AE86: 32 | AH86: =AH87+AH88 -> 0
D87: освобождено от занимаемой должности (чел.) | AE87: 32/1
D88: объявлены выговоры, замечания, предупреждения (чел.) | AE88: 32/2
D89: Число лиц, привлеченных к материальной ответственности, (чел.) | AE89: 33
A90: IV | D90: Возмещено средств, использованных с нарушением законодательства, дополнительно поступило платежей и предотвращено потерь по результатам проведенных ревизий и проверок | AE90: Х | AH90: Х
D91: Сумма возмещенных финансовых нарушений, в том числе: | AE91: 34 | AH91: =SUM(AH92:AL95) -> 38
D92: средств бюджета Республики Башкортостан | AE92: 34/1 | AH92: =AH97+AH120 -> 0
D93: средств бюджета муниципального образования | AE93: 34/2 | AH93: =AH102+AH116+AH121+AH115 -> 38
D94: средств, полученных от приносящей доход деятельности | AE94: 34/3 | AH94: =AH107+AH122 -> 0
D95: прочих средств | AE95: 34/4 | AH95: =AH111+AH123 -> 0
D96: Восстановлено в добровольном порядке, в том числе: | AE96: 35 | AH96: =AH97+AH102+AH107+AH111+AH115+AH116+AH119 -> 38
D97: средств бюджета Республики Башкортостан | AE97: 35/1 | AH97: =SUM(AH98:AL101) -> 0
D98: в доход бюджета Республики Башкортостан | AE98: 35/1/1
D99: на счета и в кассу учреждения | AE99: 35/1/2
D100: в регистрах бухгалтерского учета учреждения | AE100: 35/1/3
D101: оприходованы излишки и неучтенные ценности, денежные средства | AE101: 35/1/4
D102: средств бюджета муниципального образования | AE102: 35/1 | AH102: =SUM(AH103:AL106) -> 38
D103: в доход бюджета муниципального района | AE103: 35/2/1
D104: на счета и в кассу учреждения | AE104: 35/2/2
D105: в регистрах бухгалтерского учета учреждения | AE105: 35/2/3
D106: оприходованы излишки и неучтенные ценности, денежные средства | AE106: 35/2/4 | AH106: 38
D107: средств, полученных от приносящей доход деятельности | AE107: 35/3 | AH107: =SUM(AH108:AL110) -> 0
D108: на лицевые счета и кассу учреждения | AE108: 35/3/2
D109: в регистрах бухгалтерского учета учреждения | AE109: 35/3/3
D110: оприходованы излишки и неучтенные ценности, денежные средства | AE110: 35/3/4
D111: прочих средств | AE111: 35/4 | AH111: =SUM(AH112:AL114) -> 0
D112: на банковские счета и кассу учреждения | AE112: 35/4/2
D113: в регистрах бухгалтерского учета учреждения | AE113: 35/4/3
D114: оприходованы излишки и неучтенные ценности, денежные средства | AE114: 35/4/4
D115: Вынесено уведомлений об изменении лимитов бюджетных обязательств | AE115: 36
D116: Дополнительно поступило платежей в бюджет МО, в том числе: | AE116: 37 | AH116: =SUM(AH117:AL118) -> 0
D117: Налоговые платежи | AE117: 37/1
D118: Неналоговые платежи | AE118: 37/2
A119: V | D119: Предотвращены потери, в том числе: | AE119: 38 | AH119: =SUM(AH120:AL123) -> 0
D120: средств бюджета Республики Башкортостан | AE120: 38/1
D121: средств бюджета муниципального образования | AE121: 38/2
D122: средств, полученных от приносящей доход деятельности | AE122: 38/3
D123: прочих средств | AE123: 38/4

Sheet 4. Объекты КМ
A1: Сведения об объектах контроля
A2: =CONCATENATE("по состоянию на ",'1. Начальные данные'!D18," ",'1. Начальные данные'!F18) -> по состоянию на 1 июля 2021 года
A3: ='1. Начальные данные'!D17 -> МР Нуримановский район РБ
A5: № | B5: Объект контроля | C5: Тема КМ | D5: Проверяемый период (дд.мм.год-дд.мм.год) | E5: Сроки проведения КМ (дд.мм.год-дд.мм.год) | F5: Сумма проверенных средств | G5: в т.ч. проверено средств бюджета РБ | H5: Главный распорядитель бюджетных средств | I5: Сумма выявленных финансовых нарушений | J5: в т.ч. нарушено при использовании средств бюджета РБ
A6: 1 | B6: Администрация сельского поселения Новосубаевский сельсовет муниципального района Нуримановский район Республики башкортостан | C6: ревизии исполнения бюджета сельского поселения | D6: 01.01.2018-31.03.2021 | E6: 25.03.2021-23.04.2021 | F6: 9138.7 | H6: Администрация сельского поселения Новосубаевский сельсовет муниципального района Нуримановский район Республики башкортостан | I6: 507.8
A7: 2 | B7: Муниципальное бюджетное учреждение «Нуримановский информационно-консультационный центр» | C7: внеплановая проверка нормативных правовых актов по оплате труда | D7: 01.01.2021-31.03.2021 | E7: 02.04.2021-05.04.2021 | F7: 432 | H7: Администрация муниципального района | I7: 80
A8: 3 | I8: =SUM(I6:I7) -> 587.8
A9: 4
A10: 5
A11: 6
A12: 7
A13: 8
A14: 9
A15: 10
A16: 11
A17: 12
A18: 13
A19: 14
A20: 15
A21: 16
A22: 17
A23: 18
A24: 19
A25: 20
A26: 21
A27: 22
A28: 23
A29: 24
A30: 25
A31: 26
A32: 27
A33: 28
A34: 29
A35: 30
A36: 31
A37: 32
A38: 33
A39: 34
A40: 35
A41: 36
A42: 37
A43: 38
A44: 39
A45: 40
A46: 41
A47: 42
A48: 43
A49: 44
A50: 45
A51: 46
A52: 47
A53: 48
A54: 49
A55: 50
A56: 51
A57: 52
A58: 53
A59: 54
A60: 55
A61: 56
A62: 57
A63: 58
A64: 59
A65: 60
A66: 61
A67: 62
A68: 63
A69: 64
A70: 65
A71: 66
A72: 67
A73: 68
A74: 69
A75: 70
A76: 71
A77: 72
A78: 73
A79: 74
A80: 75
A81: 76
A82: 77
A83: 78
A84: 79
A85: 80
A86: 81
A87: 82
A88: 83
A89: 84
A90: 85
A91: 86
A92: 87
A93: 88
A94: 89
A95: 90
A96: 91
A97: 92
A98: 93
A99: 94
A100: 95
A101: 96
A102: 97
A103: 98
A104: 99
A105: 100
A106: 101
A107: 102
A108: 103
A109: 104
A110: 105
A111: 106
A112: 107
A113: 108
A114: 109
A115: 110
A116: 111
A117: 112
A118: 113
A119: 114
A120: 115
A121: 116
A122: 117
A123: 118
A124: 119
A125: 120
A126: 121
A127: 122
A128: 123
A129: 124
A130: 125
A131: 126
A132: 127
A133: 128
A134: 129
A135: 130
A136: 131
A137: 132
A138: 133
A139: 134
A140: 135
A141: 136
A142: 137
A143: 138
A144: 139
A145: 140
A146: 141
A147: 142
A148: 143
A149: 144
A150: 145
A151: 146
A152: 147
A153: 148
A154: 149
A155: 150
A156: 151
A157: 152
A158: 153
A159: 154
A160: 155
A161: 156
A162: 157
A163: 158
A164: 159
A165: 160
A166: 161
A167: 162
A168: 163
A169: 164
A170: 165
A171: 166
A172: 167
A173: 168
A174: 169
A175: 170
A176: 171
A177: 172
A178: 173
A179: 174
A180: 175
A181: 176
A182: 177
A183: 178
A184: 179
A185: 180
A186: 181
A187: 182
A188: 183
A189: 184
A190: 185
A191: 186
A192: 187
A193: 188
A194: 189
A195: 190
A196: 191
A197: 192
A198: 193
A199: 194
A200: 195
A201: 196
... 204 more rows

Sheet 5. Оценка кач-ва
A1: Сведения о контрольной деятельности органа внутреннего муниципального финансового контроля
A2: ='1. Начальные данные'!D17 -> МР Нуримановский район РБ
A4: № п/п | B4: Показатели | C4: Единица измерения | D4: Значение показателя | E4: Примечание
A5: 1. Общие сведения об количестве объектов контроля муниципального образования
A6: 1.1 | B6: Количество главных администраторов бюджетных средств (главные распорядители и администраторы доходов и источников) | C6: ед. | D6: 15
A7: 1.2 | B7: Количество получателей бюджетных средств (казенные и органы местного самоуправления) | C7: ед. | D7: 15
A8: 1.2.2 | B8: в том числе органы местного самоуправления | C8: ед. | D8: 15
A9: 1.3 | B9: Количество бюджетных учреждений | C9: ед. | D9: 14
A10: 1.4 | B10: Количество автономных учреждений | C10: ед. | D10: 3
A11: 1.5 | B11: Количество муниципальных унитарных предприятий | C11: ед. | D11: 2
A12: 1.6 | B12: Количество хозяйственных товариществ и обществ с участием муниципального образования в их уставных капиталах | C12: ед. | D12: 0
A13: 1.7 | B13: Количество юридических лиц, определенных ст.266.1 БК РФ, индивидуальных предпринимателей и физических лиц | C13: ед. | D13: 0
A14: 2. Информация об органе внутреннего муниципального финансового контроля (ст. 269.2 БК РФ)
A15: 2.1 | B15: Полномочия по осуществлению ВМФК возложены на финансовый орган администрации муниципального образования | C15: да/нет | D15: да | F15: =IF(AND(D15="Да",D19="Да"),"Проверьте на какой орган возложены полномочия","") -> 
A16: 2.1.1 | B16: Штатная численность финансового органа (всего) | C16: ед. | D16: 13
A17: 2.1.1.1 | B17: Штатная численность должностных лиц (подразделения) финансового органа, осуществляющих ВМФК | C17: ед. | D17: 1 | F17: =IF(D17>D16,"Проверьте соотношение с вышестоящей ячейкой","") -> 
A18: 2.1.1.2 | B18: Фактическая численность должностных лиц (подразделения) финансового органа, осуществляющих ВМФК | C18: ед. | D18: 3 | F18: =IF(D18>D17,"Проверьте соотношение с вышестоящей ячейкой","") -> Проверьте соотношение с вышестоящей ячейкой
A19: 2.2 | B19: Полномочия по осуществлению ВМФК возложены на иных должностных лиц (подразделение) администрации муниципального образования | C19: да/нет | D19: нет
A20: 2.2.1 | B20: Штатная численность администрации муниципального образования | C20: ед.
A21: 2.2.1.1 | B21: Штатная численность должностных лиц (подразделения) администрации, осуществляющих ВМФК | C21: ед. | F21: =IF(D21>D20,"Проверьте соотношение с вышестоящей ячейкой","") -> 
A22: 2.2.1.2 | B22: Фактическая численность должностных лиц (подразделения) администрации, осуществляющих ВМФК | C22: ед. | F22: =IF(D22>D21,"Проверьте соотношение с вышестоящей ячейкой","") -> 
A23: 2.3 | B23: Количество должностных лиц, осуществляющих ВМФК, обладающих дипломами высшего профобразования в области финансов, бухгалтерского учета, анализа и аудита, по экономическим специальностям | C23: ед. | D23: 1 | F23: =IF((D18+D22)>=(SUM(D24:D26)),"","Количество должностных имеющих дипломы, свидетельства превышает число фактическую численность") -> 
A24: 2.4 | B24: Количество должностных лиц, осуществляющих ВМФК, обладающих дипломами среднего профобразования в области финансов, бухгалтерского учета, анализа и аудита, по экономическим специальностям | C24: ед.
A25: 2.5 | B25: Количество должностных лиц, осуществляющих ВМФК, обладающих свидетельствами (сертификатами) о прохождении повышения квалификации по направлению деятельности в течение последних трех лет | C25: ед.
A26: 2.6 | B26: Количество должностных лиц, осуществляющих ВМФК, имеющих отдельный рабочий стол | C26: ед. | D26: 1
A27: 2.7 | B27: Количество должностных лиц, осуществляющих ВМФК имеющих закрепленную компьютерную технику | C27: ед. | D27: 1
A28: 2.8 | B28: Количество должностных лиц, осуществляющих ВМФК имеющие на рабочем месте доступ к справочно-правовым системам (Консультант, Гарант и др.) | C28: ед. | D28: 1
A29: 2.9 | B29: Количество должностных лиц, осуществляющих ВМФК имеющих на рабочем месте доступ к интернету | C29: ед. | D29: 1
A30: 2.10 | B30: Количество должностных лиц, осуществляющих ВМФК, выполняющие другие функции кроме контрольной | C30: ед. | D30: 1 | E30: осуществление контроля ч.3 чт. 99 ФХ №44-ФЗ
A31: 2.11 | B31: Количество обоснованных жалоб по контрольной деятельности на должностных лиц, осуществляющих ВМФК | C31: ед. | D31: 0
A32: 2.12 | B32: Наличие плана контрольных мероприятий на отчетный период | C32: да\нет | D32: да
A33: 2.13 | B33: Количество запланированных контрольных мероприятий на отчетную дату | C33: ед. | D33: 2
A34: 2.13.1 | B34: Количество проведенных (завершенных) плановых контрольных мероприятий за отчетный период в соответствии | C34: ед. | D34: ='3. ФК-1'!AH10 -> 1
A35: 2.13.2 | B35: Количество проведенных (завершенных) внеплановых контрольных мероприятий за отчетный период | C35: ед. | D35: ='3. ФК-1'!AH11 -> 1
A36: 2.14 | B36: Общее количество объектов контроля в отчетном периоде | C36: ед. | D36: 2
A37: 2.14.1 | B37: Количество проверенных объектов контроля в отчетном периоде | C37: ед. | D37: ='3. ФК-1'!AH16 -> 0
A38: 2.15 | B38: Количество контрольных мероприятий проведенных в отчетном периоде, по которым выявлены финансовые и нефинансовые нарушения | C38: ед. | D38: ='3. ФК-1'!AH24 -> 0
A39: 2.16 | B39: Количество контрольных мероприятий, по которым объекту контроля направлены представления, предписания, заключения, уведомления, письма, служебные записки | C39: ед. | D39: 2
A40: 2.17 | B40: Количество контрольных мероприятий, по которым приняты меры по предъявленным представлениям, предписаниям, заключениям, уведомлениям, письмам, служебным запискам | C40: ед. | D40: 2
A41: 2.18 | B41: Объемы денежных средств, которые были проверены в отчетном периоде | C41: тыс. руб | D41: =SUM('2. Пров.суммы'!B11:E11) -> 9570.8
A42: 2.19 | B42: Выявлено финансовых нарушений на сумму | C42: тыс. руб | D42: ='3. ФК-1'!AH29 -> 587.7
A43: 2.19.1 | B43: Объем денежных средств, подлежащих взысканию | C43: тыс. руб
A44: 2.19.2 | B44: Взыскано (восстановлено) средств | C44: тыс. руб
A45: 2.20 | B45: Количество признанных судами незаконными предписаний и представлений | C45: ед.
A46: 2.21 | B46: Количество составленных протоколов об административном правонарушении в отчетном периоде | C46: ед.
A47: 2.21.1 | B47: Количество вынесенных постановлений о назначении административного штрафа по указанным протоколам | C47: ед.
A48: 2.21.2 | B48: Сумма вынесенных постановлений о назначении административного штрафа по указанным протоколам | C48: тыс. руб
A49: 2.21.2.1 | B49: Сумма административных штрафов, взысканная в бюджет | C49: тыс. руб
A50: 2.22 | B50: Количество отмененных судами постановлений о привлечении к административной ответственности правонарушителей по причинам отсутствия события (состава) правонарушения, пропуска срока давности привлечения к ответственности, а также вследствие допущенных процессуальных нарушений | C50: ед.
A51: 2.23 | B51: Количество направленных в финансовый орган уведомлений о применении мер принуждения | C51: ед.
A52: 2.23.1 | B52: Количество возвращенных уведомлений о применении мер принуждения по причине неправильной квалификации фактов нарушений и нарушения срока направления уведомлений, установленного БК РФ | C52: ед.
A53: 2.24 | B53: Количество материалов, переданных в правоохранительные органы | C53: ед.
A54: 2.25 | B54: Количество проверок, проведенных совместно с правоохранительными органами | C54: ед.
A55: 2.26 | B55: Количество проверок, проведенных совместно с органами внешнего МФК | C55: ед.
A56: 2.27 | B56: Количество соглашений, подписанных с другими ведомствами (в том числе с правоохранительными органами и поселениями) по вопросам контрольной деятельности | C56: ед.
A57: 2.27.1 | B57: из них, количество соглашений, подписанных с поселениями, входящими в состав муниципального района, по вопросам контрольной деятельности | C57: ед.
A58: 3. Муниципальные правовые акты регулирующие деятельность органа внутреннего муниципального финансового контроля
A59: 3.1 | B59: Документ (постановление), подтверждающий возложение полномочий по осуществлению ВМФК на орган ВМФК (ст.265, 269.2 БК РФ) | C59: да\нет
A60: 3.2 | B60: Документ (Положение), подтверждающий закрепление функции (обязанности) по осуществлению бюджетных полномочий по осуществлению ВМФК за органом ВМФК (ст.6, 152 БК РФ) | C60: да\нет
A61: 3.3 | B61: Документ (постановление), регламентирующий деятельность по осуществлению ВМФК (ст.269.2 БК РФ) | C61: да\нет
A62: 3.4 | B62: Документ (распоряжение, приказ), необходимый для реализации полномочия по осуществлению ВМФК (п.3 ППРБ от 20.02.2014 № 66, требования МПА) | C62: да\нет
A63: 3.5 | B63: Документ (документы), определяющий (ие) стандарты осуществления ВМФК (п.3 ст.269.2 БК РФ) | C63: да\нет
A64: 3.6 | B64: Документ, регламентирующий осуществление контроля за полнотой и достоверностью отчетности о реализации муниципальных программ, об исполнении муниципальных заданий (п.1 ст.269.2 БК РФ) | C64: да\нет
A65: 3.7 | B65: Документ (постановление), определяющий порядок осуществления ВФК и ВФА главными администраторами средств местного бюджета (п.5 ст.160.2-1 БК РФ) | C65: да\нет
A66: 3.8 | B66: Документ (распоряжение, приказ), определяющий порядок проведения анализа осуществления главными администраторами средств местного бюджета ВФК и ВФА (п.4 ст.157 БК РФ) | C66: да\нет
A67: 4. Открытость и доступность информации о результатах контрольных мероприятий, проведение мероприятий по предупреждению нарушений бюджетного законодательства
A68: 4.1 | B68: Размещение информации на официальном сайте органа ВМФК | C68: х | D68: х
A69: 4.1.1 | B69: Информации о реквизитах контрольного органа | C69: да\нет | D69: да | E69: nuriman-fu.ru
A70: 4.1.2 | B70: Сведений о руководстве органа ВМФК | C70: да\нет | D70: да | E70: http://nuriman-fu.ru/fu/structure/
A71: 4.1.3 | B71: Опубликованных отчетов о результатах контроля | C71: да\нет | D71: да | E71: http://nuriman-fu.ru/control/financial/reports/
A72: 4.1.4 | B72: МПА, регламентирующих контрольную деятельность | C72: да\нет | D72: Да | E72: в соотвествии с федеральными стандартами
A73: 4.1.5 | B73: Информации о типовых нарушениях и иных разъяснений по вопросам контроля | C73: да\нет | D73: да | E73: http://nuriman-fu.ru/control/financial/violations/
A74: 4.2 | B74: Проведение органами ВМФК мониторинга выявленных нарушений бюджетного законодательства в отчетном периоде | C74: да\нет | D74: да
A75: 4.3 | B75: Проведение информационной работы по предупреждению нарушений бюджетного законодательства (письма, совещания, аналитические записки и др.) | C75: да\нет | D75: да
A76: 4.4 | B76: Оказание методической помощи по вопросам контрольной деятельности органам ВМФК поселений, входящих в муниципальный район, главным распорядителям и администраторам средств бюджета МО | C76: да\нет | D76: да
A81: Заместитель главы администрации- начальник фмнансового управления | D81: Ардаширова А.Г.
D100: ='Показатели качества'!G126 -> 

Sheet Показатели качества
A2: Показатели качества деятельности органов муниципального финансового контроля Республики Башкортостан
A3: № п/п | B3: Показатель | C3: Расчет показателя | D3: Единица измерения | E3: Баллы | F3: Примечание | G3: Баллы
A4: 1. Качество нормативно-правового обеспечения осуществления внутреннего муниципального финансового контроля
A5: 1.1 | B5: Документ (постановление), подтверждающий возложение полномочий по осуществлению ВМФК на орган ВМФК (ст. 269.2 БК РФ) | C5: Наличие МПА | D5: баллы | E5: 5 | F5: показатель применяется для оценки правового обеспечения деятельности органа ВМФК | G5: =IF(OR('5. Оценка кач-ва'!D59="Да",'5. Оценка кач-ва'!D60="Да"),5,0) -> 0
C6: Отсутствие МПА | D6: баллы | E6: 0
A7: 1.2 | B7: Документ (Положение), подтверждающий закрепление функции (обязанности) по осуществлению бюджетных полномочий по осуществлению ВМФК за органом ВМФК (ст.6, 152 БК РФ) | C7: Наличие МПА | D7: баллы | E7: 5 | F7: показатель применяется для оценки правового обеспечения деятельности органа ВМФК | G7: =IF(OR('5. Оценка кач-ва'!D59="Да",'5. Оценка кач-ва'!D60="Да"),5,0) -> 0
C8: Отсутствие МПА | D8: баллы | E8: 0
A9: 1.3 | B9: Документ (постановление), регламентирующий деятельность по осуществлению ВМФК (п.3 ст. 269.2 БК РФ) | C9: Наличие МПА | D9: баллы | E9: 5 | F9: показатель применяется для оценки правового обеспечения деятельности органа ВМФК | G9: =IF(OR('5. Оценка кач-ва'!D61="Да",'5. Оценка кач-ва'!D62="Да"),5,0) -> 0
C10: Отсутствие МПА | D10: баллы | E10: 0
A11: 1.4 | B11: Документ (распоряжение, приказ), необходимый для реализации полномочия по осуществлению ВМФК (п.3 ППРБ от 20.02.2014 № 66, требования МПА) | C11: Наличие МПА | D11: баллы | E11: 5 | F11: показатель применяется для оценки правового обеспечения деятельности органа ВМФК | G11: =IF(OR('5. Оценка кач-ва'!D61="Да",'5. Оценка кач-ва'!D62="Да"),5,0) -> 0
C12: Отсутствие МПА | D12: баллы | E12: 0
A13: 1.5 | B13: Документ, регламентирующий осуществление контроля за полнотой и достоверностью отчетности о реализации муниципальных программ, об исполнении муниципальных заданий (п.1 ст.269.2 БК РФ) | C13: Наличие МПА | D13: баллы | E13: 5 | F13: показатель применяется для оценки правового обеспечения деятельности органа ВМФК | G13: =IF('5. Оценка кач-ва'!D64="Да",5,0) -> 0
C14: Отсутствие МПА | D14: баллы | E14: 0
A15: 1.6 | B15: Документ (документы), определяющий (ие) стандарты осуществления ВМФК (п.3 ст.269.2 БК РФ) | C15: Наличие МПА | D15: баллы | E15: 5 | F15: показатель применяется для оценки правового обеспечения деятельности органа ВМФК | G15: =IF('5. Оценка кач-ва'!D63="Да",5,0) -> 0
C16: Отсутствие МПА | D16: баллы | E16: 0
A17: 1.7 | B17: Документ (постановление), определяющий порядок осуществления ВФК и ВФА главными администраторами средств местного бюджета (п.5 ст.160.2-1 БК РФ) ПУНКТ ИСКЛЮЧЕН | C17: Наличие МПА | D17: баллы | E17: 0 | F17: показатель применяется для оценки правового обеспечения деятельности органа ВМФК | G17: =IF('5. Оценка кач-ва'!D65="Да",5,0) -> 0
C18: Отсутствие МПА | D18: баллы | E18: 0
A19: 1.8 | B19: Документ (распоряжение, приказ), определяющий порядок проведения анализа осуществления главными администраторами средств местного бюджета ВФК и ВФА (п.4 ст.157 БК РФ) ПУНКТ ИСКЛЮЧЕН | C19: Наличие МПА | D19: баллы | E19: 0 | F19: показатель применяется для оценки правового обеспечения деятельности органа ВМФК | G19: =IF('5. Оценка кач-ва'!D66="Да",5,0) -> 0
C20: Отсутствие МПА | D20: баллы | E20: 0
A21: 2. Квалификация и уровень профессиональной подготовки должностных лиц органа внутреннего муниципального финансового контроля
A22: 2.1 | B22: Образование по экономическим специальностям в области финансов и бухгалтерского учета | C22: P = 100*(BCp)/Ч, ВСр – количество должностных лиц, осуществляющих ВМФК, обладающих дипломами высшего и среднего профобразования в области финансов, бухгалтерского учета, анализа и аудита, по экономическим специальностям; Ч – общее количество должностных лиц, осуществляющих ВМФК по состоянию на 1 число месяца, следующим за отчетным периодом | D22: % | G22: =VLOOKUP(H22,Контроль!A95:E195,2,FALSE) -> 1 | H22: =IFERROR(ROUND((('5. Оценка кач-ва'!D23+'5. Оценка кач-ва'!D24)/('5. Оценка кач-ва'!D18+'5. Оценка кач-ва'!D22)*100),0),0) -> 33
C23: Р = 100% | D23: баллы | E23: 5
C24: Р = 75% до <100% | D24: баллы | E24: 4
C25: Р = 50% до <75% | D25: баллы | E25: 3
C26: Р = 40% до <50% | D26: баллы | E26: 2
C27: Р = 25% до <40% | D27: баллы | E27: 1
C28: Р < 25% | D28: баллы | E28: 0
A29: 2.2 | B29: Повышение квалификации по направлению деятельности | C29: Р = 100*Чп/Ч, где, Чп – количество должностных лиц, осуществляющих ВМФК, обладающих свидетельствами (сертификатами) о прохождении повышения квалификации по направлению деятельности в течение последних трех лет; Ч – общее количество должностных лиц, осуществляющих ВМФК по состоянию на 1 число месяца, следующим за отчетным периодом | D29: % | G29: =VLOOKUP(H29,Контроль!A95:E195,3,FALSE) -> 0 | H29: =IFERROR(ROUND('5. Оценка кач-ва'!D25/('5. Оценка кач-ва'!D18+'5. Оценка кач-ва'!D22)*100,0),0) -> 0
C30: Р = 100% | D30: баллы | E30: 5
C31: Р = 75% до <100% | D31: баллы | E31: 4
C32: Р = 60% до <75% | D32: баллы | E32: 3
C33: Р = 45% до <60% | D33: баллы | E33: 2
C34: Р = 30% до <45% | D34: баллы | E34: 1
C35: Р < 30% | D35: баллы | E35: 0
A36: 2.3 | B36: Оснащенность рабочего места | C36: Р = 100*((С+К+П+И)/4)/Ч, С – количество должностных лиц, осуществляющих ВМФК, имеющих отдельный рабочий стол; К – количество должностных лиц, осуществляющих ВМФК имеющих закрепленную компьютерную технику; П – количество должностных лиц, осуществляющих ВМФК имеющие на рабочем месте доступ к программным продуктам (Консультант, Гарант и др.); И – количество должностных лиц, осуществляющих ВМФК имеющих на рабочем месте доступ к интернету | D36: % | G36: =VLOOKUP(H36,Контроль!A95:E195,3,FALSE) -> 1 | H36: =IFERROR(ROUND(('5. Оценка кач-ва'!D26+'5. Оценка кач-ва'!D27+'5. Оценка кач-ва'!D28+'5. Оценка кач-ва'!D29)*25/('5. Оценка кач-ва'!D18+'5. Оценка кач-ва'!D22),0),0) -> 33
C37: Р = 100% | D37: баллы | E37: 5
C38: Р = 75% до <100% | D38: баллы | E38: 4
C39: Р = 60% до <75% | D39: баллы | E39: 3
C40: Р = 45% до <60% | D40: баллы | E40: 2
C41: Р = 30% до <45% | D41: баллы | E41: 1
C42: Р < 30% | D42: баллы | E42: 0
A43: 2.4 | B43: Возложение на должностное лицо, осуществляющее ВМФК других функций, кроме контрольной | C43: Р = 100*Чф/Ч, где, Чф – количество должностных лиц, осуществляющих ВМФК, выполняющие другие функции кроме контрольной; Ч – общее количество должностных лиц, осуществляющих ВМФК по состоянию на 1 число месяца, следующим за отчетным периодом | D43: % | F43: контроль в сфере закупок (ч.8 ст.99 ФЗ № 44-ФЗ) относится к контрольной функции | G43: =VLOOKUP(H43,Контроль!A95:E195,4,FALSE) -> 5 | H43: =IFERROR(ROUND('5. Оценка кач-ва'!D30/('5. Оценка кач-ва'!D18+'5. Оценка кач-ва'!D22)*100,0),0) -> 33
C44: Р < 40% | D44: баллы | E44: 5
C45: Р = 40% до <75% | D45: баллы | E45: 3
C46: Р = 75% до 100% | D46: баллы | E46: 0
A47: 2.5 | B47: Соблюдение профессиональных стандартов и этики служебного поведения | C47: Отсутствие жалоб по контрольной деятельности на должностных лиц, осуществляющих ВМФК | D47: баллы | E47: 5 | G47: =IF('5. Оценка кач-ва'!D31=0,5,0) -> 5
C48: Наличие жалоб по контрольной деятельности на должностных лиц, осуществляющих ВМФК | D48: баллы | E48: 0
A49: 3. Интенсивность и результативность контрольных мероприятий органа внутреннего муниципального финансового контроля
A50: 3.1 | B50: Планирование контрольной деятельности органа ВМФК | C50: Наличие плана контрольных мероприятий на отчетный период | D50: баллы | E50: 5 | G50: =IF('5. Оценка кач-ва'!D32="Да",5,0) -> 5
C51: Отсутствие плана контрольных мероприятий на отчетный период | D51: баллы | E51: 0
A52: 3.2 | B52: Выполнение плана по осуществлению ВМФК | C52: Р = 100*Кз/Кп, Кз – количество проведенных (завершенных) плановых контрольных мероприятий в отчетном периоде; Кп – количество контрольных мероприятий по утвержденному плану | D52: % | G52: =VLOOKUP(H52,Контроль!A95:E195,3,FALSE) ->  | H52: =IFERROR(ROUND('5. Оценка кач-ва'!D33/'5. Оценка кач-ва'!D34*100,0),0) -> 200
C53: Р = 100% | D53: баллы | E53: 5
C54: Р = 75% до <100% | D54: баллы | E54: 4
C55: Р = 60% до <75% | D55: баллы | E55: 3
C56: Р = 45% до <60% | D56: баллы | E56: 2
C57: Р = 30% до <45% | D57: баллы | E57: 1
C58: Р < 30% | D58: баллы | E58: 0
A59: 3.3 | B59: Количество контрольных мероприятий по ВМФК, проведенных в муниципальном образовании в отчетном периоде на одно должностное лицо, осуществляющее ВМФК | C59: Р = Кф/Ч, Кф – количество проведенных (завершенных) плановых и внеплановых контрольных мероприятий в отчетном периоде, Ч – общее количество должностных лиц, осуществляющих ВМФК по состоянию на 1 число месяца, следующим за отчетным периодом | D59: ед. | G59: =IF(H59>=9.3,5,IF(H59>=7.7,4,IF(H59>=5.5,3,IF(H59>=3.3,2,IF(H59>=1.6,1,0))))) -> 0 | H59: =IFERROR(('5. Оценка кач-ва'!D34+'5. Оценка кач-ва'!D35)/('5. Оценка кач-ва'!D18+'5. Оценка кач-ва'!D22),0) -> 0.6666666667
C60: Р = ≥Кср. + (70*Кср/100), Кср - среднее количество контрольных мероприятий на одно должностное лицо, осуществляющее ВМФК, в целом по всем муниципальным образованиям, сложившееся по результатам контрольных мероприятий в предшествующем отчетному периоде | D60: баллы | E60: 5 | F60: Кср в 2016 г. = 5,5; 5,5+(70*5,5/100) = 9,3 Кср указывается в запросе Рабочей группы
C61: Р = от ≥Кср + (40*Кср/100) до <Кср + (70*Кср/100) | D61: баллы | E61: 4 | F61: Кср в 2016 г. = 5,5; 5,5+(40*5,5/100) = 7,7
C62: Р = от Кср до <Кср + (40*Кср/100) | D62: баллы | E62: 3 | F62: Кср в 2016 г. = 5,5
C63: Р = от ≥Кср ‑ (40*Кср/100) до <Кср | D63: баллы | E63: 2 | F63: Кср в 2016 г. = 5,5; 5,5-(40*5,5/100) = 3,3
C64: Р = от ≥Кср ‑ (70*Кср/100) до <Кср | D64: баллы | E64: 1 | F64: Кср в 2016 г. = 5,5; 5,5-(70*5,5/100) = 1,6
C65: Р= 0 до <Кср ‑ (70*Кср/100) | D65: баллы | E65: 0 | F65: Кср в 2016 г. = 5,5
A66: 3.4 | B66: Результативность контрольных мероприятий | C66: Р = 100*Кр/К, Кр – количество результативных контрольных мероприятий проведенных в отчетном периоде, К – общее количество контрольных мероприятий проведенных в отчетном периоде | D66: % | F66: результативное мероприятие – мероприятие, в котором выявлены финансовые и нефинансовые нарушения | G66: =VLOOKUP(H66,Контроль!A95:E195,3,FALSE) -> 0 | H66: =IFERROR(ROUND(100*'5. Оценка кач-ва'!D38/'5. Оценка кач-ва'!D34,0),0) -> 0
C67: Р = 100% | D67: баллы | E67: 5
C68: Р = 75% до <100% | D68: баллы | E68: 4
C69: Р = 60% до <75% | D69: баллы | E69: 3
C70: Р = 45% до <60% | D70: баллы | E70: 2
C71: Р = 30% до <45% | D71: баллы | E71: 1
C72: Р = <30% | D72: баллы | E72: 0
A73: 3.5 | B73: Эффективность контрольных мероприятий | C73: Р = 100*Км/К, Км – количество контрольных мероприятий, по которым объекту контроля направлены представления, предписания, заключения, уведомления, письма, служебные записки, К – общее количество контрольных мероприятий проведенных в отчетном периоде | G73: =VLOOKUP(H73,Контроль!A95:E195,3,FALSE) -> 5 | H73: =IFERROR(ROUND('5. Оценка кач-ва'!D39/('5. Оценка кач-ва'!D34+'5. Оценка кач-ва'!D35)*100,0),0) -> 100
C74: Р = 100% | D74: баллы | E74: 5
C75: Р = 75% до <100% | D75: баллы | E75: 4
C76: Р = 60% до <75% | D76: баллы | E76: 3
C77: Р = 45% до <60% | D77: баллы | E77: 2
C78: Р = 30% до <45% | D78: баллы | E78: 1
C79: Р = <30% | D79: баллы | E79: 0
A80: 3.6 | B80: Исполнительность мер, предъявленных по результатам контрольных мероприятий | C80: Р = 100*Км/К, Км – количество контрольных мероприятий, по которым приняты меры по предъявленным представлениям, предписаниям, заключениям, уведомлениям, письмам, служебным запискам, К – общее количество контрольных мероприятий, по которым объекту контроля направлены представления, предписания, заключения, уведомления, письма, служебные записки | F80: показатель рассчитывается с учетом пояснений органа ВМФК | G80: =VLOOKUP(H80,Контроль!A95:E195,5,FALSE) -> 5 | H80: =IFERROR(ROUND('5. Оценка кач-ва'!D40/'5. Оценка кач-ва'!D39*100,0),0) -> 100
C81: Р = 80% до 100% | D81: баллы | E81: 5
C82: Р = 40% до <80% | D82: баллы | E82: 3
C83: Р = 20% до <40% | D83: баллы | E83: 1
C84: Р = <20% | D84: баллы | E84: 0
A85: 3.7 | B85: Эффективность мер, предъявленных по результатам контрольных мероприятий | C85: Р = 100*Св/Сн, Св – объемы денежных средств, взысканные (восстановленные) в доход бюджета муниципального образования, Сн – объемы денежных средств, подлежащие взысканию (восстановлению) в доход бюджета муниципального образования | D85: % | G85: =VLOOKUP(H85,Контроль!A95:E195,3,FALSE) -> 0 | H85: =IFERROR(ROUND('5. Оценка кач-ва'!D44/'5. Оценка кач-ва'!D43*100,0),0) -> 0
C86: Р = 100% | D86: баллы | E86: 5
C87: Р = 75% до <100% | D87: баллы | E87: 4
C88: Р = 60% до <75% | D88: баллы | E88: 3
C89: Р = 45% до <60% | D89: баллы | E89: 2
C90: Р = 30% до <45% | D90: баллы | E90: 1
C91: Р = <30% | D91: баллы | E91: 0
A92: 3.8 | B92: Эффективность реализации материалов | C92: Р = 100*Пн/Поб, Пн - количество признанных судами незаконными предписаний и представлений, Поб - общее количество предписаний и представлений | D92: % | G92: =5-VLOOKUP(H92,Контроль!A95:E195,3,FALSE) -> 5 | H92: =IFERROR(ROUND('5. Оценка кач-ва'!D45/'3. ФК-1'!AH73*100,0),0) -> 0
C93: Р = 100% | D93: баллы | E93: 0
C94: Р = 75% до <100% | D94: баллы | E94: 1
C95: Р = 60% до <75% | D95: баллы | E95: 2
C96: Р = 45% до <60% | D96: баллы | E96: 3
C97: Р = 30% до <45% | D97: баллы | E97: 4
C98: Р = 0% до <30% | D98: баллы | E98: 5
A99: 3.9 | B99: Эффективность административного производства по делам об АП | C99: Наличие составленных протоколов об административном правонарушении | D99: баллы | E99: 5 | G99: =IF('5. Оценка кач-ва'!D46>0,5,0) -> 0
C100: Отсутствие составленных протоколов об административном правонарушении | D100: баллы | E100: 0
A101: 3.10 | B101: Эффективность работы по направлению уведомлений по бюджетным мерам принуждения | C101: Р = 100*Ув/У, Ув - возвращенные уведомления по причине неправильной квалификации фактов нарушений и нарушения сроков направления уведомлений, установленных БК РФ, У - общее количество направленных уведомлений | D101: % | G101: =5-VLOOKUP(H101,Контроль!A95:E195,3,FALSE) -> 5 | H101: =IFERROR(ROUND('5. Оценка кач-ва'!D52/'5. Оценка кач-ва'!D51*100,0),0) -> 0
C102: Р = 100% | D102: баллы | E102: 0
C103: Р = 75% до <100% | D103: баллы | E103: 1
C104: Р = 60% до <75% | D104: баллы | E104: 2
C105: Р = 45% до <60% | D105: баллы | E105: 3
C106: Р = 30% до <45% | D106: баллы | E106: 4
C107: Р = 0% до <30% | D107: баллы | E107: 5
A108: 4. Открытость, доступность и креативность контрольной деятельности
A109: 4.1* | B109: Размещение информации на официальном сайте органа ВМФК | C109: Общий балл | D109: баллы | F109: общий балл определяется путем суммирования баллов по п.4.1.1-4.1.5 | G109: =SUM(G110:G124) -> 20
A110: 4.1.1 | C110: Наличие информации о реквизитах контрольного органа | D110: баллы | E110: 1 | G110: =IF('5. Оценка кач-ва'!D69="Да",1,0) -> 1
C111: Отсутствие информации о реквизитах контрольного органа | D111: баллы | E111: 0
A112: 4.1.2 | C112: Наличие сведений о руководстве органа ВМФК | D112: баллы | E112: 1 | G112: =IF('5. Оценка кач-ва'!D70="Да",1,0) -> 1
C113: Отсутствие сведений о руководстве органа ВМФК | D113: баллы | E113: 0
A114: 4.1.3 | C114: Наличие опубликованных отчетов о результатах контрольной деятельности | D114: баллы | E114: 1 | G114: =IF('5. Оценка кач-ва'!D71="Да",1,0) -> 1
C115: Отсутствие опубликованных отчетов о результатах контрольной деятельности | D115: баллы | E115: 0
A116: 4.1.4 | C116: Наличие МПА, регламентирующих контрольную деятельность | D116: баллы | E116: 1 | G116: =IF('5. Оценка кач-ва'!D72="Да",1,0) -> 1
C117: Отсутствие МПА, регламентирующих контрольную деятельность | D117: баллы | E117: 0
A118: 4.1.5 | C118: Наличие информации о типовых нарушениях и иных разъяснений по вопросам контроля | D118: баллы | E118: 1 | G118: =IF('5. Оценка кач-ва'!D73="Да",1,0) -> 1
C119: Отсутствие информации о типовых нарушениях и иных разъяснений по вопросам контроля | D119: баллы | E119: 0
A120: 4.2 | B120: Проведение органами ВМФК мониторинга выявленных нарушений бюджетного законодательства в отчетном периоде | C120: Наличие результатов мониторинга | D120: баллы | E120: 5 | G120: =IF('5. Оценка кач-ва'!D74="Да",5,0) -> 5
C121: Отсутствие результатов мониторинга | D121: баллы | E121: 0
A122: 4.3 | B122: Проведение информационной работы по предупреждению нарушений бюджетного законодательства (письма, совещания, аналитические записки, др.) | C122: Наличие информационной работы по предупреждению нарушений | D122: баллы | E122: 5 | G122: =IF('5. Оценка кач-ва'!D75="Да",5,0) -> 5
C123: Отсутствие информационной работы по предупреждению нарушений | D123: баллы | E123: 0
A124: 4.4 | B124: Оказание методической помощи по вопросам контрольной деятельности органам ВМФК поселений, входящих в муниципальный район, главным распорядителям и администраторам средств бюджета МО | C124: Наличие методической помощи органам ВМФК поселений | D124: баллы | E124: 5 | G124: =IF('5. Оценка кач-ва'!D76="Да",5,0) -> 5
C125: Отсутствие методической помощи органам ВМФК поселений | D125: баллы | E125: 0
A126: Итоговое количество баллов: | G126: =SUM(G5:G109) -> 

Sheet Контроль (hidden)
A1: Уровень
A2: Государственный | C2: Общегосударственные вопросы
A3: Муниципальный | C3: Национальная оборона
C4: Национальная безопасность и правоохранительная деятельность
A5: Дата | C5: Национальная экономика
A6: 1 апреля | C6: Жилищно-коммунальное хозяйство
A7: 1 июля | C7: Охрана окружающей среды
A8: 1 октября | C8: Образование
A9: 1 января | C9: Культура, кинематография
C10: Здравоохранение
A11: Год | C11: Социальная политика
A12: 2017 года | C12: Физическая культура и спорт
A13: 2018 года | C13: Средства массовой информации
A14: 2019 года | C14: Обслуживание государственного и муниципального долга
A15: 2020 года | C15: Межбюджетные трансферты общего характера бюджетам бюджетной системы российской федерации
A16: 2021 года
A17: 2022 года
A18: 2023 года
A19: 2024 года
C20: Не используется
A21: МО | C21: ГРБС
A22: ГО г. Агидель РБ | C22: Агентство по печати и средствам массовой информации РБ
A23: ГО г. Кумертау РБ | C23: Государственная инспекция по надзору за техническим состоянием самоходных машин и других видов техники РБ
A24: ГО г. Нефтекамск РБ | C24: Государственный комитет РБ по внешнеэкономическим связям
A25: ГО г. Октябрьский РБ | C25: Государственный комитет РБ по делам юстиции
A26: ГО г. Салават РБ | C26: Государственный комитет РБ по жилищному и строительному надзору
A27: ГО г. Сибай РБ | C27: Государственный комитет РБ по информатизации и вопросам функционирования системы «Открытая Республика»
A28: ГО г. Стерлитамак РБ | C28: Государственный комитет РБ по предпринимательству и туризму
A29: ГО г. Уфа РБ | C29: Государственный комитет РБ по строительству и архитектуре
A30: ЗАТО г. Межгорье РБ | C30: Государственный комитет РБ по тарифам
A31: МР Абзелиловский район РБ | C31: Государственный комитет РБ по торговле и защите прав потребителей
A32: МР Альшеевский район РБ | C32: Государственный комитет РБ по транспорту и дорожному хозяйству
A33: МР Архангельский район РБ | C33: Государственный комитет РБ по чрезвычайным ситуациям
A34: МР Аскинский район РБ | C34: Министерство жилищно-коммунального хозяйства РБ
A35: МР Аургазинский район РБ | C35: Министерство здравоохранения РБ
A36: МР Баймакский район РБ | C36: Министерство земельных и имущественных отношений РБ
A37: МР Бакалинский район РБ | C37: Министерство культуры РБ
A38: МР Балтачевский район РБ | C38: Министерство лесного хозяйства РБ
A39: МР Белебеевский район РБ | C39: Министерство молодежной политики и спорта РБ
A40: МР Белокатайский район РБ | C40: Министерство образования РБ
A41: МР Белорецкий район РБ | C41: Министерство природопользования и экологии РБ
A42: МР Бижбулякский район РБ | C42: Министерство промышленности и инновационной политики РБ
A43: МР Бирский район РБ | C43: Министерство сельского хозяйства РБ
A44: МР Благоварский район РБ | C44: Министерство семьи, труда и социальной защиты населения РБ
A45: МР Благовещенский район РБ | C45: Министерство финансов РБ
A46: МР Буздякский район РБ | C46: Министерство экономического развития РБ
A47: МР Бураевский район РБ | C47: Уполномоченный по правам ребенка в Республике Башкортостан
A48: МР Бурзянский район РБ | C48: Управление ветеринарии РБ
A49: МР Гафурийский район РБ | C49: Управление по государственной охране объектов культурного наследия РБ
A50: МР Давлекановский район РБ | C50: Управление по делам архивов РБ
A51: МР Дуванский район РБ | C51: Управление по контролю и надзору в сфере образования РБ
A52: МР Дюртюлинский район РБ
A53: МР Ермекеевский район РБ
A54: МР Зианчуринский район РБ
A55: МР Зилаирский район РБ
A56: МР Иглинский район РБ
A57: МР Илишевский район РБ
A58: МР Ишимбайский район РБ
A59: МР Калтасинский район РБ
A60: МР Караидельский район РБ
A61: МР Кармаскалинский район РБ
A62: МР Кигинский район РБ
A63: МР Краснокамский район РБ
A64: МР Кугарчинский район РБ
A65: МР Кушнаренковский район РБ
A66: МР Куюргазинский район РБ
A67: МР Мелеузовский район РБ
A68: МР Мечетлинский район РБ
A69: МР Мишкинский район РБ
A70: МР Миякинский район РБ
A71: МР Нуримановский район РБ
A72: МР Салаватский район РБ
A73: МР Стерлибашевский район РБ
A74: МР Стерлитамакский район РБ
A75: МР Татышлинский район РБ
A76: МР Туймазинский район РБ
A77: МР Уфимский район РБ
A78: МР Учалинский район РБ
A79: МР Федоровский район РБ
A80: МР Хайбуллинский район РБ
A81: МР Чекмагушевский район РБ
A82: МР Чишминский район РБ
A83: МР Шаранский район РБ
A84: МР Янаульский район РБ
A89: Для показателей качества
A90: Да
A91: Нет
B93: Пункты: 2.1 | C93: Пункты: 2.2, 2.3, 3.2, 3.4, 3.5, 3.7, 3.8, 3.10 | D93: Пункты: 2.4 | E93: Пункты: 3.6
A94: ВПР-% | B94: ВПР-Баллы | C94: ВПР-Баллы | D94: ВПР-Баллы | E94: ВПР-Баллы
A95: 0 | B95: 0 | C95: 0 | D95: 5 | E95: 0
A96: 1 | B96: 0 | C96: 0 | D96: 5 | E96: 0
A97: 2 | B97: 0 | C97: 0 | D97: 5 | E97: 0
A98: 3 | B98: 0 | C98: 0 | D98: 5 | E98: 0
A99: 4 | B99: 0 | C99: 0 | D99: 5 | E99: 0
A100: 5 | B100: 0 | C100: 0 | D100: 5 | E100: 0
A101: 6 | B101: 0 | C101: 0 | D101: 5 | E101: 0
A102: 7 | B102: 0 | C102: 0 | D102: 5 | E102: 0
A103: 8 | B103: 0 | C103: 0 | D103: 5 | E103: 0
A104: 9 | B104: 0 | C104: 0 | D104: 5 | E104: 0
A105: 10 | B105: 0 | C105: 0 | D105: 5 | E105: 0
A106: 11 | B106: 0 | C106: 0 | D106: 5 | E106: 0
A107: 12 | B107: 0 | C107: 0 | D107: 5 | E107: 0
A108: 13 | B108: 0 | C108: 0 | D108: 5 | E108: 0
A109: 14 | B109: 0 | C109: 0 | D109: 5 | E109: 0
A110: 15 | B110: 0 | C110: 0 | D110: 5 | E110: 0
A111: 16 | B111: 0 | C111: 0 | D111: 5 | E111: 0
A112: 17 | B112: 0 | C112: 0 | D112: 5 | E112: 0
A113: 18 | B113: 0 | C113: 0 | D113: 5 | E113: 0
A114: 19 | B114: 0 | C114: 0 | D114: 5 | E114: 0
A115: 20 | B115: 0 | C115: 0 | D115: 5 | E115: 1
A116: 21 | B116: 0 | C116: 0 | D116: 5 | E116: 1
A117: 22 | B117: 0 | C117: 0 | D117: 5 | E117: 1
A118: 23 | B118: 0 | C118: 0 | D118: 5 | E118: 1
A119: 24 | B119: 0 | C119: 0 | D119: 5 | E119: 1
A120: 25 | B120: 1 | C120: 0 | D120: 5 | E120: 1
A121: 26 | B121: 1 | C121: 0 | D121: 5 | E121: 1
A122: 27 | B122: 1 | C122: 0 | D122: 5 | E122: 1
A123: 28 | B123: 1 | C123: 0 | D123: 5 | E123: 1
A124: 29 | B124: 1 | C124: 0 | D124: 5 | E124: 1
A125: 30 | B125: 1 | C125: 1 | D125: 5 | E125: 1
A126: 31 | B126: 1 | C126: 1 | D126: 5 | E126: 1
A127: 32 | B127: 1 | C127: 1 | D127: 5 | E127: 1
A128: 33 | B128: 1 | C128: 1 | D128: 5 | E128: 1
A129: 34 | B129: 1 | C129: 1 | D129: 5 | E129: 1
A130: 35 | B130: 1 | C130: 1 | D130: 5 | E130: 1
A131: 36 | B131: 1 | C131: 1 | D131: 5 | E131: 1
A132: 37 | B132: 1 | C132: 1 | D132: 5 | E132: 1
A133: 38 | B133: 1 | C133: 1 | D133: 5 | E133: 1
A134: 39 | B134: 1 | C134: 1 | D134: 5 | E134: 1
A135: 40 | B135: 2 | C135: 1 | D135: 3 | E135: 3
A136: 41 | B136: 2 | C136: 1 | D136: 3 | E136: 3
A137: 42 | B137: 2 | C137: 1 | D137: 3 | E137: 3
A138: 43 | B138: 2 | C138: 1 | D138: 3 | E138: 3
A139: 44 | B139: 2 | C139: 1 | D139: 3 | E139: 3
A140: 45 | B140: 2 | C140: 2 | D140: 3 | E140: 3
A141: 46 | B141: 2 | C141: 2 | D141: 3 | E141: 3
A142: 47 | B142: 2 | C142: 2 | D142: 3 | E142: 3
A143: 48 | B143: 2 | C143: 2 | D143: 3 | E143: 3
A144: 49 | B144: 2 | C144: 2 | D144: 3 | E144: 3
A145: 50 | B145: 3 | C145: 2 | D145: 3 | E145: 3
A146: 51 | B146: 3 | C146: 2 | D146: 3 | E146: 3
A147: 52 | B147: 3 | C147: 2 | D147: 3 | E147: 3
A148: 53 | B148: 3 | C148: 2 | D148: 3 | E148: 3
A149: 54 | B149: 3 | C149: 2 | D149: 3 | E149: 3
A150: 55 | B150: 3 | C150: 2 | D150: 3 | E150: 3
A151: 56 | B151: 3 | C151: 2 | D151: 3 | E151: 3
A152: 57 | B152: 3 | C152: 2 | D152: 3 | E152: 3
A153: 58 | B153: 3 | C153: 2 | D153: 3 | E153: 3
A154: 59 | B154: 3 | C154: 2 | D154: 3 | E154: 3
A155: 60 | B155: 3 | C155: 3 | D155: 3 | E155: 3
A156: 61 | B156: 3 | C156: 3 | D156: 3 | E156: 3
A157: 62 | B157: 3 | C157: 3 | D157: 3 | E157: 3
A158: 63 | B158: 3 | C158: 3 | D158: 3 | E158: 3
A159: 64 | B159: 3 | C159: 3 | D159: 3 | E159: 3
A160: 65 | B160: 3 | C160: 3 | D160: 3 | E160: 3
A161: 66 | B161: 3 | C161: 3 | D161: 3 | E161: 3
A162: 67 | B162: 3 | C162: 3 | D162: 3 | E162: 3
A163: 68 | B163: 3 | C163: 3 | D163: 3 | E163: 3
A164: 69 | B164: 3 | C164: 3 | D164: 3 | E164: 3
A165: 70 | B165: 3 | C165: 3 | D165: 3 | E165: 3
A166: 71 | B166: 3 | C166: 3 | D166: 3 | E166: 3
A167: 72 | B167: 3 | C167: 3 | D167: 3 | E167: 3
A168: 73 | B168: 3 | C168: 3 | D168: 3 | E168: 3
A169: 74 | B169: 3 | C169: 3 | D169: 3 | E169: 3
A170: 75 | B170: 4 | C170: 4 | D170: 0 | E170: 3
A171: 76 | B171: 4 | C171: 4 | D171: 0 | E171: 3
A172: 77 | B172: 4 | C172: 4 | D172: 0 | E172: 3
A173: 78 | B173: 4 | C173: 4 | D173: 0 | E173: 3
A174: 79 | B174: 4 | C174: 4 | D174: 0 | E174: 3
A175: 80 | B175: 4 | C175: 4 | D175: 0 | E175: 5
A176: 81 | B176: 4 | C176: 4 | D176: 0 | E176: 5
A177: 82 | B177: 4 | C177: 4 | D177: 0 | E177: 5
A178: 83 | B178: 4 | C178: 4 | D178: 0 | E178: 5
A179: 84 | B179: 4 | C179: 4 | D179: 0 | E179: 5
A180: 85 | B180: 4 | C180: 4 | D180: 0 | E180: 5
A181: 86 | B181: 4 | C181: 4 | D181: 0 | E181: 5
A182: 87 | B182: 4 | C182: 4 | D182: 0 | E182: 5
A183: 88 | B183: 4 | C183: 4 | D183: 0 | E183: 5
A184: 89 | B184: 4 | C184: 4 | D184: 0 | E184: 5
A185: 90 | B185: 4 | C185: 4 | D185: 0 | E185: 5
A186: 91 | B186: 4 | C186: 4 | D186: 0 | E186: 5
A187: 92 | B187: 4 | C187: 4 | D187: 0 | E187: 5
A188: 93 | B188: 4 | C188: 4 | D188: 0 | E188: 5
A189: 94 | B189: 4 | C189: 4 | D189: 0 | E189: 5
A190: 95 | B190: 4 | C190: 4 | D190: 0 | E190: 5
A191: 96 | B191: 4 | C191: 4 | D191: 0 | E191: 5
A192: 97 | B192: 4 | C192: 4 | D192: 0 | E192: 5
A193: 98 | B193: 4 | C193: 4 | D193: 0 | E193: 5
A194: 99 | B194: 4 | C194: 4 | D194: 0 | E194: 5
A195: 100 | B195: 5 | C195: 5 | D195: 0 | E195: 5
